bitfinex/quotes_SOLUSD_20241122
["timestamp","ask_amount","ask_price","bid_price","bid_amount"]
[1732247995157,23.776884,262.26,262.18,20.0]
[1732247996555,23.776884,262.28,262.18,20.0]
[1732247998562,23.53521145,262.23,262.1,6.354]
[1732247998757,23.776884,262.22,262.1,6.354]
[1732247999981,23.776884,262.24,262.11,20.0]
[1732248001577,23.776884,262.26,262.11,20.0]
[1732248001979,6.04658222,262.31,262.11,20.0]
[1732248002235,23.53521145,262.3,262.11,20.0]
[1732248002390,23.53521145,262.32,262.12,0.5720457]
[1732248002687,23.53521145,262.36,262.13,38.0083]
[1732248002857,23.53521145,262.36,262.15,6.354]
[1732248003055,23.53521145,262.36,262.16,24.59150722]
[1732248003459,23.53521145,262.47,262.16,24.59150722]
[1732248003460,23.53521145,262.4,262.2,20.0]
[1732248003681,23.53521145,262.4,262.21,4.59150722]
[1732248004483,23.53521145,262.42,262.21,7.09150722]
[1732248004788,23.53521145,262.46,262.25,6.354]
[1732248004973,23.53521145,262.46,262.26,24.59150722]
[1732248005487,23.53521145,262.5,262.27,15.5083]
[1732248005664,12.16432017,262.55,262.32,20.0]
[1732248005665,23.53521145,262.55,262.32,20.0]
[1732248005975,23.53521145,262.55,262.34,20.0]
[1732248006175,23.53521145,262.57,262.36,20.0]
[1732248006361,23.53521145,262.57,262.37,4.844285]
[1732248007586,23.776884,262.56,262.37,4.844285]
[1732248007961,23.776884,262.5,262.36,20.0]
[1732248008170,6.15853931,262.61,262.36,20.0]
[1732248008463,23.53521145,262.55,262.36,20.0]
[1732248008664,23.53521145,262.53,262.36,20.0]
[1732248009598,23.53521145,262.51,262.36,20.0]
[1732248009888,23.53521145,262.6,262.36,20.0]
[1732248009889,23.53521145,262.49,262.36,20.0]
[1732248010381,23.776884,262.48,262.35,6.354]
[1732248010685,23.53521145,262.45,262.35,6.354]
[1732248010997,23.776884,262.44,262.35,6.354]
[1732248011488,23.776884,262.4,262.31,15.5083]
[1732248011665,23.776884,262.36,262.28,6.354]
[1732248012291,23.776884,262.34,262.25,15.5083]
[1732248012981,23.776884,262.34,262.22,6.5395]
[1732248013288,23.776884,262.32,262.22,6.5395]
[1732248014196,23.776884,262.36,262.23,20.0]
[1732248014492,23.53521145,262.41,262.23,20.0]
[1732248015085,23.53521145,262.39,262.23,20.0]
[1732248015278,23.53521145,262.41,262.23,20.0]
[1732248015974,23.776884,262.38,262.23,20.0]
[1732248016178,23.53521145,262.35,262.22,6.5395]
[1732248016688,23.776884,262.34,262.22,6.5395]
[1732248016891,23.53521145,262.37,262.22,6.5395]
[1732248016892,23.776884,262.36,262.22,6.5395]
[1732248018079,23.776884,262.36,262.23,20.0]
[1732248018891,23.776884,262.34,262.23,20.0]
[1732248020194,23.776884,262.36,262.23,20.0]
[1732248023391,22.4271,262.51,262.24,0.57193513]
[1732248023580,23.53521145,262.39,262.25,20.0]
[1732248024283,23.53521145,262.35,262.22,6.5395]
[1732248024496,23.53521145,262.37,262.22,6.5395]
[1732248024804,23.776884,262.36,262.22,6.5395]
[1732248025484,23.776884,262.36,262.23,20.0]
[1732248026492,23.53521145,262.37,262.23,20.0]
[1732248026705,23.776884,262.36,262.23,20.0]
[1732248027278,23.776884,262.38,262.23,20.0]
[1732248027481,23.53521145,262.41,262.23,20.0]
[1732248027896,23.53521145,262.39,262.23,20.0]
[1732248028481,23.53521145,262.35,262.23,20.0]
[1732248028680,23.776884,262.34,262.23,20.0]
[1732248029480,23.776884,262.36,262.23,20.0]
[1732248031284,23.53521145,262.33,262.22,6.5395]
[1732248031495,23.776884,262.3,262.22,6.5395]
[1732248033402,23.776884,262.28,262.22,6.5395]
[1732248035384,23.776884,262.28,262.19,16.1284]
[1732248035590,23.776884,262.26,262.19,16.1284]
[1732248035908,23.776884,262.22,262.15,6.6488]
[1732248036281,23.776884,262.22,262.13,16.2235]
[1732248037913,23.776884,262.22,262.09,6.6488]
[1732248037914,23.776884,262.2,262.09,6.6488]
[1732248038078,23.776884,262.14,262.09,6.6488]
[1732248038282,23.776884,262.2,262.07,16.2235]
[1732248038283,23.776884,262.12,262.07,16.2235]
[1732248038697,23.776884,262.12,262.03,6.6488]
[1732248038897,23.776884,262.14,262.03,6.6488]
[1732248039406,23.776884,262.14,262.04,20.0]
[1732248039728,23.776884,262.12,262.03,6.6488]
[1732248040693,23.53521145,262.17,262.03,6.6488]
[1732248040890,23.53521145,262.19,262.03,6.6488]
[1732248041088,23.53521145,262.17,262.03,6.6488]
[1732248041591,23.53521145,262.15,262.04,20.0]
[1732248042202,23.776884,262.14,262.04,20.0]
[1732248044298,23.53521145,262.13,262.04,20.0]
[1732248044501,23.776884,262.12,262.04,20.0]
[1732248045190,23.53521145,262.2,262.04,20.0]
[1732248046210,83.3,262.29,262.04,20.0]
[1732248046211,23.53521145,262.22,262.04,20.0]
[1732248046404,23.53521145,262.24,262.04,20.0]
[1732248046601,23.53521145,262.24,262.06,20.0]
[1732248046808,23.53521145,262.2,262.06,20.0]
[1732248048002,23.53521145,262.16,262.06,20.0]
[1732248048412,23.776884,262.15,262.06,20.0]
[1732248053921,23.776884,262.12,262.05,15.2711]
[1732248054428,23.776884,262.16,262.05,15.2711]
[1732248054761,14.72694034,262.17,262.05,15.2711]
[1732248054916,14.72694034,262.19,262.05,15.2711]
[1732248055228,14.72694034,262.22,262.06,20.0]
[1732248056017,14.72694034,262.24,262.06,20.0]
[1732248057198,14.72694034,262.22,262.06,20.0]
[1732248058122,23.776884,262.21,262.06,20.0]
[1732248060025,23.776884,262.16,262.05,15.2711]
[1732248061827,23.776884,262.16,262.06,20.0]
[1732248062517,14.72694034,262.23,262.06,20.0]
[1732248063027,14.72694034,262.25,262.06,20.0]
[1732248064121,21.27448978,262.32,262.06,20.0]
[1732248064435,23.776884,262.24,262.06,20.0]
[1732248065213,14.72694034,262.23,262.06,20.0]
[1732248065419,23.776884,262.2,262.06,20.0]
[1732248066513,14.72694034,262.19,262.05,15.2711]
[1732248066835,23.776884,262.18,262.05,15.2711]
[1732248067443,23.776884,262.16,262.05,15.2711]
[1732248067618,23.776884,262.14,262.05,15.2711]
[1732248068428,23.776884,262.16,262.05,15.2711]
[1732248069211,23.776884,262.16,262.06,20.0]
[1732248069418,0.07715392,262.07,262.06,20.0]
[1732248069927,0.07715392,262.07,262.05,15.2711]
[1732248076742,0.07715392,262.07,262.03,6.6488]
[1732248076919,0.07715392,262.07,261.98,16.2575]
[1732248078438,0.07715392,262.07,261.99,20.0]
[1732248079746,0.07715392,262.07,261.97,6.5838]
[1732248080040,0.07715392,262.07,261.92,16.2575]
[1732248080041,23.776884,262.05,261.92,16.2575]
[1732248080242,14.72694034,262.04,261.92,16.2575]
[1732248080420,23.776884,262.03,261.92,16.2575]
[1732248080931,23.776884,262.01,261.92,16.2575]
[1732248081951,23.776884,261.99,261.86,16.2575]
[1732248082322,23.776884,261.97,261.86,16.2575]
[1732248082837,6.03447739,262.04,261.86,16.2575]
[1732248082838,23.776884,262.01,261.86,16.2575]
[1732248083040,23.776884,262.04,261.87,4.59970639]
[1732248083342,23.776884,262.04,261.87,8.65540457]
[1732248083535,23.776884,262.04,261.88,20.0]
[1732248084552,14.72694034,262.03,261.87,20.0]
[1732248084735,23.776884,262.0,261.87,20.0]
[1732248085538,23.776884,261.98,261.86,16.2575]
[1732248086626,23.776884,262.0,261.86,16.2575]
[1732248087236,23.776884,262.0,261.87,20.0]
[1732248088054,23.776884,261.98,261.87,20.0]
[1732248088661,23.776884,261.98,261.86,16.2575]
[1732248089251,14.72694034,261.97,261.86,16.2575]
[1732248089433,0.07813481,261.87,261.86,36.2575]
[1732248090251,0.07813481,261.87,261.86,16.2575]
[1732248090555,0.07813481,261.87,261.85,6.5838]
[1732248090940,0.07813481,261.87,261.8,15.7389]
[1732248092136,0.07813481,261.87,261.79,6.1056]
[1732248093638,0.07813481,261.87,261.8,20.0]
[1732248098433,0.07813481,261.87,261.8,20.57284685]
[1732248099358,0.07813481,261.87,261.82,23.776884]
[1732248099538,0.07813481,261.87,261.83,20.57260301]
[1732248100636,0.07813481,261.87,261.84,6.1056]
[1732248100835,0.07813481,261.87,261.85,20.57261732]
[1732248101051,0.0760176,261.9,261.87,20.0]
[1732248101233,14.72694034,262.1,261.91,23.776884]
[1732248101441,14.72694034,262.1,261.92,0.57242444]
[1732248102357,21.92523155,262.14,261.92,0.57242444]
[1732248102358,14.72694034,262.12,261.92,0.57242444]
[1732248103137,1.523926,262.17,261.94,43.776884]
[1732248103343,14.72694034,262.15,261.94,44.34921559]
[1732248104065,14.72694034,262.13,261.94,43.776884]
[1732248105167,14.72694034,262.15,261.94,43.776884]
[1732248105663,23.776884,262.14,261.94,43.776884]
[1732248105869,23.776884,262.14,261.94,44.34920886]
[1732248106167,14.72694034,262.13,261.94,43.776884]
[1732248107170,23.776884,262.14,261.94,43.776884]
[1732248107556,14.72694034,262.2,261.97,43.776884]
[1732248107750,14.72694034,262.18,261.98,5.18641068]
[1732248108067,14.72694034,262.18,261.99,20.0]
[1732248109067,23.776884,262.17,261.99,20.0]
[1732248109450,0.08178054,262.0,261.99,20.0]
[1732248111372,0.08178054,262.0,261.98,20.57225984]
[1732248112073,0.08178054,262.0,261.98,0.57225984]
[1732248112264,0.08178054,262.0,261.99,0.57235071]
[1732248113175,0.08178054,262.0,261.97,20.57235076]
[1732248122357,0.08178054,262.0,261.98,23.776884]
[1732248122558,0.08178054,262.0,261.99,44.34923455]
[1732248122981,0.08178054,262.0,261.99,20.57235055]
[1732248123469,0.08178054,262.0,261.99,0.57235055]
[1732248123674,0.08178054,262.0,261.97,20.57234102]
[1732248125361,0.08178054,262.0,261.96,15.0156]
[1732248125564,0.08178054,262.0,261.92,0.57238002]
[1732248126259,0.08178054,262.0,261.92,5.18653086]
[1732248126659,16.5518,262.24,261.98,43.776884]
[1732248126879,0.0014801,262.05,262.01,20.0]
[1732248127089,0.0014801,262.05,262.02,0.57220258]
[1732248128181,0.0014801,262.05,262.03,23.776884]
[1732248128386,0.0014801,262.05,262.04,0.57217294]
[1732248129089,0.0014801,262.05,262.04,20.57217294]
[1732248129588,0.0014801,262.05,262.0,20.0]
[1732248129792,0.0014801,262.05,261.98,20.0]
[1732248129959,0.0014801,262.05,262.0,20.0]
[1732248130971,0.0014801,262.05,262.01,0.57227911]
[1732248131173,0.0014801,262.05,262.01,4.62797729]
[1732248131381,14.71830139,262.22,262.01,4.62797729]
[1732248131674,23.776884,262.21,262.01,4.62797729]
[1732248131870,23.776884,262.21,262.01,0.57227911]
[1732248132186,23.776884,262.21,262.0,24.61415084]
[1732248132698,14.71830139,262.2,262.02,20.0]
[1732248132878,14.71830139,262.18,262.02,20.0]
[1732248133190,37.59530139,262.16,261.97,22.1964]
[1732248133380,37.59530139,262.16,261.92,4.61415084]
[1732248133381,14.71830139,262.14,261.92,4.61415084]
[1732248133573,23.776884,262.13,261.92,4.61415084]
[1732248134067,23.776884,262.13,261.93,3.802]
[1732248134572,14.71830139,262.14,261.95,20.0]
[1732248135486,23.776884,262.13,261.93,3.802]
[1732248135691,23.776884,262.13,261.93,23.802]
[1732248136589,14.71830139,262.12,261.93,20.0]
[1732248137174,23.776884,262.15,261.93,20.0]
[1732248137381,23.776884,262.15,261.95,20.0]
[1732248138488,22.877,262.16,261.96,23.776884]
[1732248138694,22.877,262.16,261.97,20.0]
[1732248141973,23.776884,262.15,261.95,4.05569818]
[1732248142197,23.776884,262.15,261.9,2.5]
[1732248142383,23.776884,262.15,261.91,26.15529818]
[1732248143296,14.71830139,262.14,261.92,43.776884]
[1732248143489,23.776884,262.13,261.92,43.776884]
[1732248143789,23.776884,262.09,261.91,15.8171]
[1732248144004,23.776884,262.07,261.89,4.61415084]
[1732248144687,23.776884,262.05,261.85,22.0996]
[1732248144891,23.776884,262.05,261.86,4.05569818]
[1732248145199,23.776884,262.05,261.86,8.66984902]
[1732248146195,6.576,262.06,261.87,43.776884]
[1732248146379,6.576,262.06,261.89,23.776884]
[1732248146693,6.576,262.06,261.91,43.776884]
[1732248146870,6.576,262.06,261.91,52.44673302]
[1732248147995,6.576,262.06,261.91,20.0]
[1732248148179,6.576,262.06,261.87,23.776884]
[1732248148897,6.576,262.06,261.88,20.0]
[1732248149279,38.49518539,261.95,261.75,4.47799089]
[1732248149500,38.49518539,261.95,261.73,6.20899438]
[1732248149501,23.776884,261.95,261.73,6.20899438]
[1732248149673,23.776884,261.95,261.69,29.01786867]
[1732248150181,15.250371,261.94,261.7,2.5]
[1732248150376,15.250371,261.94,261.71,0.57278815]
[1732248150582,23.776884,261.95,261.71,20.57278815]
[1732248150781,23.776884,261.95,261.71,0.57278815]
[1732248151299,30.433375,261.96,261.73,2.5]
[1732248151482,30.433375,261.96,261.75,23.776884]
[1732248151804,15.1845,261.96,261.76,0.57271474]
[1732248152004,15.1845,261.96,261.78,20.0]
[1732248152331,15.1845,261.96,261.79,0.57269289]
[1732248152598,15.1845,261.96,261.78,20.0]
[1732248152777,15.1845,261.96,261.8,20.0]
[1732248153904,15.1845,261.96,261.73,5.0]
[1732248153905,15.1845,261.96,261.73,23.776884]
[1732248154111,15.1845,261.96,261.76,20.0]
[1732248154398,15.1845,261.96,261.78,20.0]
[1732248154579,15.1845,261.96,261.8,20.0]
[1732248155885,15.1845,261.96,261.79,23.776884]
[1732248155886,14.71830139,261.91,261.73,0.57276167]
[1732248156099,6.501,261.95,261.59,2.97008238]
[1732248156100,16.0398,261.86,261.63,6.03128749]
[1732248156287,16.0398,261.86,261.62,2.5]
[1732248156685,16.0398,261.86,261.61,2.5]
[1732248156904,16.0398,261.86,261.62,2.5]
[1732248157099,6.501,261.84,261.61,3.802]
[1732248157602,38.49518539,261.83,261.61,6.07083093]
[1732248157808,38.49518539,261.83,261.54,3.47177236]
[1732248157809,39.816684,261.8,261.55,0.57303491]
[1732248158007,16.0398,261.8,261.58,2.5]
[1732248158312,16.0398,261.8,261.58,3.07306881]
[1732248158882,16.0398,261.8,261.59,2.5]
[1732248159109,16.0398,261.8,261.6,6.302]
[1732248159298,16.0398,261.8,261.64,20.0]
[1732248159500,16.0398,261.8,261.66,20.0]
[1732248161289,16.0398,261.8,261.68,20.0]
[1732248161805,6.501,261.84,261.7,20.0]
[1732248161988,6.501,261.84,261.71,23.776884]
[1732248162183,6.501,261.84,261.72,20.0]
[1732248162786,14.71830139,261.83,261.62,23.776884]
[1732248162986,14.71830139,261.83,261.63,20.0]
[1732248163295,14.71830139,261.83,261.62,23.776884]
[1732248163296,14.71830139,261.83,261.67,20.0]
[1732248163895,14.71830139,261.81,261.61,20.0]
[1732248164201,14.71830139,261.81,261.64,23.776884]
[1732248164702,14.71830139,261.83,261.65,20.0]
[1732248166905,6.501,261.84,261.69,20.0]
[1732248167894,6.501,261.84,261.7,23.776884]
[1732248168098,15.6796,261.88,261.7,23.776884]
[1732248168302,15.6796,261.88,261.73,20.0]
[1732248168482,15.6796,261.88,261.75,20.0]
[1732248168793,15.6796,261.88,261.76,23.776884]
[1732248169009,15.6796,261.88,261.77,20.0]
[1732248169683,15.6796,261.88,261.78,23.776884]
[1732248169887,15.6796,261.94,261.8,23.776884]
[1732248170812,15.6796,261.94,261.81,20.0]
[1732248171008,15.6796,261.94,261.83,20.0]
[1732248171217,15.6796,261.94,261.85,20.0]
[1732248171707,15.6796,261.94,261.75,23.776884]
[1732248171883,15.6796,261.94,261.77,23.776884]
[1732248172079,15.6796,261.94,261.79,23.776884]
[1732248172494,15.245846,262.08,261.82,20.0]
[1732248172695,15.6796,262.11,261.8,20.57268762]
[1732248172696,14.71830139,262.09,261.86,20.0]
[1732248172904,14.71830139,262.09,261.88,20.0]
[1732248173098,14.71830139,262.09,261.9,20.0]
[1732248173400,15.242401,262.15,261.91,23.776884]
[1732248173607,2.5,262.21,261.96,20.0]
[1732248173799,14.71830139,262.1,261.96,20.0]
[1732248174202,14.71830139,262.08,261.96,20.0]
[1732248174402,14.71830139,262.06,261.9,23.776884]
[1732248174588,14.71830139,262.06,261.89,20.0]
[1732248175400,14.71830139,262.04,261.89,20.0]
[1732248175812,14.71830139,262.04,261.83,15.4633]
[1732248175993,14.71830139,262.04,261.84,43.776884]
[1732248177814,14.71830139,262.02,261.81,6.2574]
[1732248178000,14.71830139,262.0,261.81,6.2574]
[1732248179503,14.71830139,262.0,261.83,20.0]
[1732248180605,15.6796,261.97,261.83,20.0]
[1732248180807,15.6796,261.97,261.77,15.4633]
[1732248181016,20.86830139,261.96,261.75,6.2574]
[1732248181209,23.776884,261.95,261.75,6.2574]
[1732248183595,23.776884,261.95,261.76,43.776884]
[1732248184725,14.71830139,261.94,261.7,23.7772878]
[1732248184901,23.776884,261.91,261.68,12.26914954]
[1732248185100,8.65,261.96,261.64,15.4633]
[1732248185101,39.456484,261.89,261.64,15.4633]
[1732248185314,20.86830139,261.88,261.64,15.4633]
[1732248186306,20.86830139,261.88,261.64,21.6937016]
[1732248186506,20.86830139,261.88,261.65,20.0]
[1732248186709,20.86830139,261.88,261.65,24.04955014]
[1732248187016,20.86830139,261.88,261.67,20.0]
[1732248187200,20.86830139,261.88,261.69,20.0]
[1732248187597,6.15,261.88,261.71,20.0]
[1732248187825,6.15,261.88,261.74,23.776884]
[1732248187996,6.15,261.88,261.73,20.0]
[1732248187997,6.15,261.88,261.77,20.0]
[1732248188620,6.15,261.88,261.72,4.04955014]
[1732248188621,6.15,261.88,261.73,20.0]
[1732248188808,6.15,261.88,261.66,27.82643414]
[1732248189202,6.15,261.88,261.68,23.776884]
[1732248190116,6.15,261.88,261.7,23.776884]
[1732248190517,23.776884,261.87,261.71,20.0]
[1732248190708,14.71830139,261.86,261.71,20.0]
[1732248191100,23.776884,261.85,261.62,20.0]
[1732248191313,23.776884,261.85,261.61,16.26910578]
[1732248191517,23.776884,261.87,261.62,4.04955014]
[1732248192528,14.71830139,261.86,261.63,23.776884]
[1732248192829,14.71830139,261.86,261.66,20.0]
[1732248193116,14.71830139,261.86,261.67,23.776884]
[1732248193323,14.71830139,261.86,261.68,20.0]
[1732248194331,14.71830139,261.84,261.62,8.3139878]
[1732248194501,23.776884,261.81,261.55,6.4542]
[1732248194701,14.71830139,261.8,261.55,6.4542]
[1732248194895,23.776884,261.79,261.55,14.7681878]
[1732248195199,16.4092,261.78,261.55,14.7681878]
[1732248195925,16.4092,261.78,261.56,23.776884]
[1732248196122,16.4092,261.78,261.57,20.0]
[1732248196601,16.4092,261.78,261.59,20.0]
[1732248197002,16.4092,261.78,261.6,23.776884]
[1732248197363,16.4092,261.78,261.61,20.0]
[1732248197625,16.4092,261.78,261.62,23.776884]
[1732248197806,16.4092,261.78,261.63,20.0]
[1732248198126,16.4092,261.78,261.66,23.776884]
[1732248198310,16.4092,261.78,261.65,20.0]
[1732248198711,16.4092,261.78,261.56,43.776884]
[1732248199012,16.4092,261.78,261.59,20.0]
[1732248199524,16.4092,261.78,261.61,20.0]
[1732248199705,16.4092,261.78,261.62,23.776884]
[1732248200103,14.71830139,261.75,261.61,20.0]
[1732248200303,6.3421,261.77,261.61,20.0]
[1732248200727,6.3421,261.77,261.56,20.0]
[1732248201026,6.3421,261.77,261.58,20.0]
[1732248201229,6.3421,261.77,261.58,24.04955014]
[1732248201520,6.3421,261.77,261.63,23.776884]
[1732248201721,6.3421,261.77,261.65,23.776884]
[1732248202217,6.3421,261.77,261.66,20.0]
[1732248202720,6.3421,261.77,261.56,3.802]
[1732248202721,6.3421,261.77,261.56,23.802]
[1732248202901,16.4092,261.87,261.62,2.5]
[1732248203104,16.4092,261.87,261.68,23.776884]
[1732248203305,16.4092,261.87,261.7,23.776884]
[1732248203614,14.71830139,261.85,261.72,20.0]
[1732248204210,16.4092,261.87,261.63,6.15573372]
[1732248204515,14.71830139,261.86,261.64,29.29252669]
[1732248205230,14.71830139,261.86,261.67,23.776884]
[1732248205527,14.71830139,261.86,261.69,23.776884]
[1732248205726,14.71830139,261.86,261.7,20.0]
[1732248206224,14.71830139,261.86,261.69,23.776884]
[1732248206432,14.71830139,261.86,261.66,20.0]
[1732248206611,14.71830139,261.86,261.69,23.776884]
[1732248206817,14.71830139,261.86,261.7,20.0]
[1732248207333,14.71830139,261.8,261.52,28.50861936]
[1732248207509,14.71830139,261.8,261.53,9.29252669]
[1732248207905,23.776884,261.78,261.53,9.29252669]
[1732248208105,23.776884,261.78,261.53,9.86577033]
[1732248208925,38.49518539,261.78,261.53,9.86577033]
[1732248209227,38.49518539,261.78,261.54,20.0]
[1732248209538,15.7134,261.77,261.57,23.776884]
[1732248209838,15.7134,261.77,261.6,20.0]
[1732248210333,15.7134,261.77,261.6,24.53380014]
[1732248211212,15.7134,261.77,261.62,20.0]
[1732248211412,14.71830139,261.75,261.57,4.75872655]
[1732248212933,14.71830139,261.73,261.57,4.75872655]
[1732248213829,14.71830139,261.73,261.53,20.0]
[1732248214034,14.71830139,261.73,261.54,4.75872655]
[1732248214214,14.71830139,261.73,261.55,20.0]
[1732248214819,14.71830139,261.73,261.56,23.776884]
[1732248215023,30.43170139,261.77,261.6,23.776884]
[1732248215339,15.7134,261.77,261.61,20.0]
[1732248215515,15.7134,261.77,261.61,24.75872655]
[1732248215710,15.7134,261.77,261.63,20.0]
[1732248215937,15.7134,261.77,261.64,4.75872655]
[1732248216145,15.7134,261.77,261.66,20.0]
[1732248216442,15.7134,261.77,261.67,4.75872655]
[1732248216640,15.7134,261.77,261.58,3.802]
[1732248216641,30.43170139,261.77,261.47,23.0512]
[1732248216846,30.43170139,261.77,261.48,9.86579556]
[1732248217425,30.43170139,261.77,261.49,3.802]
[1732248217652,30.43170139,261.77,261.5,9.29252669]
[1732248217829,23.776884,261.74,261.5,9.29252669]
[1732248218929,30.43170139,261.77,261.51,20.0]
[1732248219137,23.776884,261.76,261.52,9.29252669]
[1732248219337,23.776884,261.76,261.53,20.0]
[1732248219534,23.776884,261.76,261.55,20.0]
[1732248219869,23.776884,261.76,261.57,20.0]
[1732248220152,23.776884,261.76,261.58,4.53380014]
[1732248220333,15.7134,261.77,261.59,43.776884]
[1732248220540,15.7134,261.77,261.61,23.776884]
[1732248220848,15.7134,261.77,261.63,23.776884]
[1732248221045,15.7134,261.77,261.64,29.29252669]
[1732248222829,23.776884,261.76,261.53,4.75872655]
[1732248223133,23.776884,261.76,261.54,4.53380014]
[1732248223353,23.776884,261.76,261.55,4.75872655]
[1732248223533,23.776884,261.76,261.56,4.53380014]
[1732248224669,14.71830139,261.7,261.56,4.53380014]
[1732248224963,14.71830139,261.68,261.45,9.29252669]
[1732248225131,23.776884,261.67,261.46,4.53380014]
[1732248225338,23.776884,261.67,261.47,4.75872655]
[1732248225631,23.776884,261.67,261.48,4.53380014]
[1732248225835,23.776884,261.67,261.49,4.75872655]
[1732248226056,23.776884,261.67,261.5,20.0]
[1732248226361,14.71830139,261.62,261.43,4.53380014]
[1732248226542,23.776884,261.61,261.44,4.53380014]
[1732248228559,23.776884,261.61,261.42,4.75872655]
[1732248228732,14.71830139,261.58,261.41,4.53380014]
[1732248229062,23.776884,261.64,261.42,4.75872655]
[1732248229252,23.776884,261.62,261.42,4.75872655]
[1732248229434,23.776884,261.62,261.42,9.29252669]
[1732248230543,23.776884,261.62,261.43,20.0]
[1732248231150,14.71830139,261.61,261.43,20.0]
[1732248231354,23.776884,261.6,261.43,20.0]
[1732248232674,21.75982988,261.6,261.42,4.53380014]
[1732248233969,14.71830139,261.59,261.42,4.53380014]
[1732248234155,14.71830139,261.59,261.36,4.75872655]
[1732248234156,14.71830139,261.59,261.38,4.53380014]
[1732248234357,14.71830139,261.59,261.39,4.75872655]
[1732248234545,14.71830139,261.59,261.4,4.53380014]
[1732248234749,23.776884,261.58,261.41,24.75872655]
[1732248236055,12.62337872,261.65,261.45,20.0]
[1732248236056,6.4846,261.65,261.45,20.0]
[1732248236260,6.4846,261.65,261.47,20.0]
[1732248236448,6.4846,261.65,261.49,20.0]
[1732248236648,6.4846,261.65,261.5,4.75872655]
[1732248239648,6.4846,261.65,261.46,23.776884]
[1732248239848,6.4846,261.65,261.46,28.31068414]
[1732248240050,6.4846,261.65,261.47,20.0]
[1732248240342,6.4846,261.65,261.47,29.29252669]
[1732248240763,23.776884,261.64,261.47,29.29252669]
[1732248240952,23.776884,261.61,261.36,22.2959]
[1732248241168,14.71830139,261.6,261.38,4.53380014]
[1732248241472,6.4846,261.65,261.38,9.29252669]
[1732248241655,23.776884,261.64,261.39,4.75872655]
[1732248241852,23.776884,261.64,261.4,4.53380014]
[1732248242055,23.776884,261.64,261.41,4.75872655]
[1732248242246,23.776884,261.64,261.42,4.53380014]
[1732248242457,23.776884,261.64,261.43,28.53561055]
[1732248242655,23.776884,261.64,261.46,20.0]
[1732248242859,23.776884,261.64,261.47,4.75872655]
[1732248244666,38.49518539,261.64,261.45,20.0]
[1732248244874,23.776884,261.61,261.4,20.0]
[1732248245075,23.776884,261.59,261.38,23.776884]
[1732248245675,23.776884,261.59,261.37,9.29252669]
[1732248245861,23.776884,261.59,261.38,4.53380014]
[1732248246246,23.776884,261.57,261.32,6.04590594]
[1732248246450,23.776884,261.57,261.33,4.75872655]
[1732248247386,23.776884,261.57,261.34,43.776884]
[1732248247555,21.7928,261.58,261.35,4.75872655]
[1732248247871,15.3082,261.58,261.37,6.4647]
[1732248248071,21.7928,261.64,261.4,43.776884]
[1732248248291,21.7928,261.64,261.43,3.812]
[1732248248582,21.7928,261.64,261.44,4.75872655]
[1732248248752,21.7928,261.64,261.46,20.0]
[1732248249250,23.776884,261.63,261.46,20.0]
[1732248249649,23.776884,261.63,261.44,4.75872655]
[1732248249978,23.776884,261.63,261.4,23.776884]
[1732248250275,23.776884,261.61,261.41,20.0]
[1732248250868,23.776884,261.61,261.41,24.75872655]
[1732248251052,23.776884,261.63,261.42,23.776884]
[1732248251252,21.7928,261.64,261.45,20.0]
[1732248251457,21.7928,261.64,261.47,20.0]
[1732248251774,15.3082,261.64,261.47,20.0]
[1732248251975,15.3082,261.64,261.5,23.776884]
[1732248252149,15.3082,261.64,261.51,20.0]
[1732248252355,15.3082,261.64,261.51,24.75872655]